fUSD/lending_fUSD_20260510
["ID","MTS","AMOUNT","RATE_DAILY","PERIOD"]
[421946370,1778362249000,-1794.44722741,0.00037613,2]
[421946374,1778362249000,-871540.22772211,0.0003988,2]
[421946373,1778362249000,-1759291.89323372,0.0003988,2]
[421946375,1778362249000,-30000.0,0.0003988,2]
[421946371,1778362249000,-151.0,0.00039,30]
[421946376,1778362249000,-18756.17091854,0.0003988,2]
[421946379,1778362249000,-151.0,0.0003988,30]
[421946378,1778362249000,-183.2417995,0.0003988,2]
[421946382,1778362249000,-299.308539,0.0003988,30]
[421946377,1778362249000,-165.06492088,0.0003988,2]
[421946381,1778362249000,-151.0,0.0003988,30]
[421946380,1778362249000,-151.0,0.0003988,30]
[421946401,1778362249000,-246.14849,0.0003988,7]
[421946446,1778362249000,-609.86109287,0.0004,2]
[421946408,1778362249000,-246.14849,0.0003988,7]
[421946428,1778362249000,-847.0,0.0004,30]
[421946424,1778362249000,-255.78255227,0.00039987,120]
[421946433,1778362249000,-829.81,0.0004,2]
[421946430,1778362249000,-194.0,0.0004,120]
[421946434,1778362249000,-150.0,0.0004,7]
[421946429,1778362249000,-1594.2,0.0004,14]
[421946440,1778362249000,-325.31196372,0.0004,2]
[421946444,1778362249000,-1706.93757448,0.0004,2]
[421946427,1778362249000,-9689.7254,0.00039995,2]
[421946438,1778362249000,-396.10820725,0.0004,2]
[421946447,1778362249000,-5118.0,0.0004,30]
[421946443,1778362249000,-163.87940253,0.0004,2]
[421946442,1778362249000,-319.37098981,0.0004,2]
[421946437,1778362249000,-822.18007593,0.0004,3]
[421946441,1778362249000,-350.29098381,0.0004,3]
[421946439,1778362249000,-1584.76662836,0.0004,2]
[421946448,1778362249000,-2044.64527,0.0004,10]
[421946410,1778362249000,-151.0,0.0003988,30]
[421946445,1778362249000,-515.24233918,0.0004,2]
[421946431,1778362249000,-160.0,0.0004,120]
[421946436,1778362249000,-4300.20446095,0.0004,30]
[421946426,1778362249000,-484.32199247,0.00039994,120]
[421946423,1778362249000,-393.51161888,0.00039983,120]
[421946398,1778362249000,-208.261282,0.0003988,28]
[421946405,1778362249000,-246.14849,0.0003988,7]
[421946404,1778362249000,-246.14849,0.0003988,7]
[421946409,1778362249000,-151.0,0.0003988,30]
[421946415,1778362249000,-167.0,0.000399,30]
[421946412,1778362249000,-484.32199247,0.00039895,120]
[421946419,1778362249000,-160.47388238,0.00039929,120]
[421946422,1778362249000,-75351.42173454,0.0003997,2]
[421946421,1778362249000,-151.0,0.00039967,14]
[421946417,1778362249000,-800.0,0.000399,14]
[421946416,1778362249000,-400.0,0.000399,14]
[421946413,1778362249000,-5367.87855,0.00039899,30]
[421946411,1778362249000,-195.9238527,0.0003989,2]
[421946414,1778362249000,-2133.88426713,0.000399,20]
[421946420,1778362249000,-151.75,0.00039945,120]
[421946425,1778362249000,-206.07,0.00039988,120]
[421946435,1778362249000,-368.72865919,0.0004,3]
[421946418,1778362249000,-154.45974035,0.00039915,5]
[421946432,1778362249000,-155.0,0.0004,120]
[421946483,1778362250000,-246.14849,0.0004,7]
[421946487,1778362250000,-3084.95,0.00040044,120]
[421946494,1778362250000,-164.3,0.000402,30]
[421946484,1778362250000,-246.14849,0.0004,7]
[421946478,1778362250000,-208.261282,0.0004,28]
[421946480,1778362250000,-208.261282,0.0004,28]
[421946479,1778362250000,-208.261282,0.0004,28]
[421946473,1778362250000,-299.308539,0.0004,30]
[421946485,1778362250000,-246.148494,0.0004,7]
[421946477,1778362250000,-151.0,0.0004,30]
[421946482,1778362250000,-246.14849,0.0004,7]
[421946488,1778362250000,-151.75,0.00040045,120]
[421946501,1778362250000,-300.0,0.00040279,2]
[421946491,1778362250000,-151.75,0.00040145,120]
[421946492,1778362250000,-154.45974035,0.00040189,5]
[421946490,1778362250000,-9689.7254,0.00040132,2]
[421946493,1778362250000,-167.0,0.000402,30]
[421946495,1778362250000,-627.71,0.000402,30]
[421946497,1778362250000,-151.75,0.00040245,120]
[421946498,1778362250000,-726.10113733,0.00040246,102]
[421946499,1778362250000,-5000.0,0.00040254,30]
[421946496,1778362250000,-627.71,0.000402,120]
[421946503,1778362250000,-300.0,0.00040279,2]
[421946475,1778362250000,-299.308539,0.0004,30]
[421946489,1778362250000,-160.0,0.000401,63]
[421946476,1778362250000,-299.308536,0.0004,30]
[421946455,1778362250000,-6558.0,0.0004,120]
[421946474,1778362250000,-299.308539,0.0004,30]
[421946454,1778362250000,-3000.0,0.0004,30]
[421946450,1778362250000,-206860.57219005,0.0004,120]
[421946453,1778362250000,-3000.0,0.0004,30]
[421946449,1778362250000,-1010.545533,0.0004,4]
[421946452,1778362250000,-3089.0,0.0004,30]
[421946500,1778362250000,-9689.7268,0.00040269,2]
[421946451,1778362250000,-3000.0,0.0004,30]
[421946459,1778362250000,-200.0,0.0004,30]
[421946456,1778362250000,-3085.21466438,0.0004,30]
[421946457,1778362250000,-23355.88852389,0.0004,30]
[421946458,1778362250000,-2500.0,0.0004,5]
[421946481,1778362250000,-208.261282,0.0004,28]
[421946471,1778362250000,-1113.1,0.0004,7]
[421946465,1778362250000,-150.0,0.0004,120]
[421946462,1778362250000,-10851.51827095,0.0004,2]
[421946466,1778362250000,-1157.52948822,0.0004,15]
[421946464,1778362250000,-536.0,0.0004,30]
[421946463,1778362250000,-4656.12345678,0.0004,2]
[421946469,1778362250000,-352.87,0.0004,30]
[421946467,1778362250000,-260.55645624,0.0004,7]
[421946460,1778362250000,-24112.34245587,0.0004,2]
[421946470,1778362250000,-188.7381276,0.0004,67]
[421946468,1778362250000,-754.52,0.0004,14]
[421946472,1778362250000,-151.0,0.0004,30]
[421946461,1778362250000,-4172.16164167,0.0004,2]
[421946505,1778362250000,-300.0,0.00040279,2]
[421946486,1778362250000,-151.0,0.0004,30]
[421946508,1778362250000,-300.0,0.00040279,2]
[421946532,1778362250000,-5000.0,0.00040505,2]
[421946536,1778362250000,-194.0,0.000406,120]
[421946537,1778362250000,-151.75,0.00040645,120]
[421946542,1778362250000,-25766.48092093,0.00040727,2]
[421946543,1778362250000,-1580.64334213,0.00040727,2]
[421946540,1778362250000,-15724.4191,0.000407,2]
[421946539,1778362250000,-606.24522011,0.000407,12]
[421946538,1778362250000,-150.42,0.0004069,120]
[421946541,1778362250000,-363.61109654,0.00040722,2]
[421946546,1778362250000,-151.75,0.00040745,120]
[421946548,1778362250000,-2982.237813,0.00040774,7]
[421946547,1778362250000,-4832.49,0.0004075,120]
[421946544,1778362250000,-3064.12503599,0.00040727,2]
[421946549,1778362250000,-1504.657183,0.00040774,7]
[421946550,1778362250000,-427.61762261,0.00040774,13]
[421946552,1778362250000,-150.0,0.00040778,10]
[421946551,1778362250000,-150.0,0.00040778,10]
[421946555,1778362250000,-150.0,0.00040778,10]
[421946553,1778362250000,-150.0,0.00040778,10]
[421946556,1778362250000,-199.0,0.00040778,10]
[421946554,1778362250000,-150.0,0.00040778,10]
[421946558,1778362250000,-400.0,0.000409,14]
[421946559,1778362250000,-151.75,0.00040945,120]
[421946504,1778362250000,-300.0,0.00040279,2]
[421946557,1778362250000,-151.75,0.00040845,120]
[421946534,1778362250000,-151.75,0.00040545,120]
[421946535,1778362250000,-170.72650475,0.00040599,2]
[421946545,1778362250000,-154.45974035,0.00040737,5]
[421946529,1778362250000,-5000.0,0.00040505,6]
[421946507,1778362250000,-300.0,0.00040279,2]
[421946533,1778362250000,-5000.0,0.00040505,3]
[421946506,1778362250000,-300.0,0.00040279,2]
[421946510,1778362250000,-2056.63,0.0004029,60]
[421946511,1778362250000,-170.72650475,0.00040299,2]
[421946519,1778362250000,-5000.0,0.00040332,3]
[421946518,1778362250000,-5000.0,0.00040332,2]
[421946516,1778362250000,-5569.52220081,0.00040332,2]
[421946517,1778362250000,-5000.0,0.00040332,2]
[421946514,1778362250000,-50000.0,0.00040329,60]
[421946512,1778362250000,-50000.0,0.00040301,60]
[421946515,1778362250000,-36134.32,0.00040329,60]
[421946509,1778362250000,-420.59,0.00040279,2]
[421946502,1778362250000,-300.0,0.00040279,2]
[421946513,1778362250000,-151.0,0.00040326,14]
[421946530,1778362250000,-5000.0,0.00040505,4]
[421946528,1778362250000,-162.24849166,0.000405,2]
[421946527,1778362250000,-170.72650475,0.00040499,2]
[421946526,1778362250000,-230.68,0.00040493,120]
[421946531,1778362250000,-5000.0,0.00040505,3]
[421946525,1778362250000,-154.45974035,0.00040463,5]
[421946522,1778362250000,-503.0,0.00040375,18]
[421946523,1778362250000,-1591.08569709,0.00040383,120]
[421946524,1778362250000,-151.75,0.00040445,120]
[421946520,1778362250000,-5000.0,0.00040332,4]
[421946521,1778362250000,-151.75,0.00040345,120]
[421946601,1778362251000,-500.0,0.00041095,2]
[421946607,1778362251000,-500.0,0.00041095,2]
[421946609,1778362251000,-500.0,0.00041095,2]
[421946600,1778362251000,-500.0,0.00041095,2]
[421946594,1778362251000,-500.0,0.00041095,2]
[421946593,1778362251000,-500.0,0.00041095,2]
[421946592,1778362251000,-500.0,0.00041095,2]
[421946596,1778362251000,-500.0,0.00041095,2]
[421946590,1778362251000,-506.00252698,0.00041095,2]
[421946595,1778362251000,-500.0,0.00041095,2]
[421946608,1778362251000,-500.0,0.00041095,2]
[421946597,1778362251000,-500.0,0.00041095,2]
[421946589,1778362251000,-500.0,0.00041095,2]
[421946625,1778362251000,-500.0,0.00041095,2]
[421946611,1778362251000,-500.0,0.00041095,2]
[421946606,1778362251000,-500.0,0.00041095,2]
[421946605,1778362251000,-500.0,0.00041095,2]
[421946602,1778362251000,-500.0,0.00041095,2]
[421946603,1778362251000,-500.0,0.00041095,2]
[421946604,1778362251000,-500.0,0.00041095,2]
[421946624,1778362251000,-500.0,0.00041095,2]
[421946613,1778362251000,-500.0,0.00041095,2]
[421946619,1778362251000,-500.0,0.00041095,2]
[421946616,1778362251000,-500.0,0.00041095,2]
[421946622,1778362251000,-500.0,0.00041095,2]
[421946617,1778362251000,-500.0,0.00041095,2]
[421946623,1778362251000,-500.0,0.00041095,2]
[421946591,1778362251000,-500.0,0.00041095,2]
[421946610,1778362251000,-574.41187752,0.00041095,2]
[421946587,1778362251000,-500.0,0.00041095,2]
[421946562,1778362251000,-208.261282,0.0004095,28]
[421946598,1778362251000,-500.0,0.00041095,2]
[421946614,1778362251000,-500.0,0.00041095,2]
[421946560,1778362251000,-263834.0,0.0004095,60]
[421946572,1778362251000,-1000.0,0.00041,30]
[421946573,1778362251000,-6558.0,0.00041,120]
[421946569,1778362251000,-168.29,0.00041,5]
[421946565,1778362251000,-1591.08569709,0.00040996,120]
[421946568,1778362251000,-160.0,0.00041,120]
[421946570,1778362251000,-1426.38,0.00041,2]
[421946563,1778362251000,-208.261282,0.0004095,28]
[421946567,1778362251000,-400.0,0.00040997,2]
[421946566,1778362251000,-400.0,0.00040997,2]
[421946561,1778362251000,-208.261282,0.0004095,28]
[421946571,1778362251000,-168.84,0.00041,7]
[421946599,1778362251000,-500.0,0.00041095,2]
[421946564,1778362251000,-208.261278,0.0004095,28]
[421946581,1778362251000,-164.99523694,0.00041074,2]
[421946582,1778362251000,-150.42,0.0004109,120]
[421946580,1778362251000,-151.75,0.00041045,120]
[421946586,1778362251000,-500.0,0.00041095,2]
[421946575,1778362251000,-536.0,0.00041,30]
[421946579,1778362251000,-1143.1,0.00041041,120]
[421946574,1778362251000,-440.18770237,0.00041,5]
[421946576,1778362251000,-329.15,0.00041,17]
[421946583,1778362251000,-500.0,0.00041095,2]
[421946584,1778362251000,-500.0,0.00041095,2]
[421946578,1778362251000,-503.0,0.00041014,19]
[421946577,1778362251000,-154.45974035,0.00041011,5]
[421946588,1778362251000,-500.0,0.00041095,2]
[421946585,1778362251000,-200.57141061,0.00041095,2]
[421946612,1778362251000,-500.0,0.00041095,2]
[421946673,1778362251000,-300.0,0.00041095,2]
[421946621,1778362251000,-500.0,0.00041095,2]
[421946651,1778362251000,-500.0,0.00041095,2]
[421946658,1778362251000,-500.0,0.00041095,2]
[421946660,1778362251000,-173.39733273,0.00041095,2]
[421946661,1778362251000,-500.0,0.00041095,2]
[421946662,1778362251000,-500.0,0.00041095,2]
[421946659,1778362251000,-500.0,0.00041095,2]
[421946674,1778362251000,-300.0,0.00041095,2]
[421946670,1778362251000,-300.0,0.00041095,2]
[421946663,1778362251000,-500.0,0.00041095,2]
[421946664,1778362251000,-500.0,0.00041095,2]
[421946665,1778362251000,-500.0,0.00041095,2]
[421946667,1778362251000,-285.41938658,0.00041095,2]
[421946668,1778362251000,-300.0,0.00041095,2]
[421946655,1778362251000,-500.0,0.00041095,2]
[421946672,1778362251000,-300.0,0.00041095,2]
[421946671,1778362251000,-300.0,0.00041095,2]
[421946666,1778362251000,-500.0,0.00041095,2]
[421946682,1778362251000,-156.31194856,0.00041095,2]
[421946675,1778362251000,-300.0,0.00041095,2]
[421946680,1778362251000,-300.0,0.00041095,2]
[421946685,1778362251000,-500.0,0.00041095,2]
[421946681,1778362251000,-300.0,0.00041095,2]
[421946678,1778362251000,-300.0,0.00041095,2]
[421946676,1778362251000,-300.0,0.00041095,2]
[421946679,1778362251000,-300.0,0.00041095,2]
[421946618,1778362251000,-500.0,0.00041095,2]
[421946677,1778362251000,-300.0,0.00041095,2]
[421946683,1778362251000,-500.0,0.00041095,2]
[421946669,1778362251000,-300.0,0.00041095,2]
[421946652,1778362251000,-500.0,0.00041095,2]
[421946684,1778362251000,-500.0,0.00041095,2]
[421946656,1778362251000,-500.0,0.00041095,2]
[421946653,1778362251000,-500.0,0.00041095,2]
[421946615,1778362251000,-500.0,0.00041095,2]
[421946626,1778362251000,-500.0,0.00041095,2]
[421946629,1778362251000,-500.0,0.00041095,2]
[421946638,1778362251000,-500.0,0.00041095,2]
[421946630,1778362251000,-500.0,0.00041095,2]
[421946627,1778362251000,-500.0,0.00041095,2]
[421946633,1778362251000,-500.0,0.00041095,2]
[421946637,1778362251000,-500.0,0.00041095,2]
[421946631,1778362251000,-500.0,0.00041095,2]
[421946628,1778362251000,-500.0,0.00041095,2]
[421946634,1778362251000,-500.0,0.00041095,2]
[421946635,1778362251000,-500.0,0.00041095,2]
[421946632,1778362251000,-500.0,0.00041095,2]
[421946620,1778362251000,-500.0,0.00041095,2]
[421946641,1778362251000,-500.0,0.00041095,2]
[421946636,1778362251000,-500.0,0.00041095,2]
[421946649,1778362251000,-500.0,0.00041095,2]
[421946645,1778362251000,-500.0,0.00041095,2]
[421946648,1778362251000,-500.0,0.00041095,2]
[421946647,1778362251000,-500.0,0.00041095,2]
[421946644,1778362251000,-500.0,0.00041095,2]
[421946654,1778362251000,-500.0,0.00041095,2]
[421946640,1778362251000,-500.0,0.00041095,2]
[421946646,1778362251000,-500.0,0.00041095,2]
[421946642,1778362251000,-500.0,0.00041095,2]
[421946657,1778362251000,-500.0,0.00041095,2]
[421946650,1778362251000,-500.0,0.00041095,2]
[421946643,1778362251000,-500.0,0.00041095,2]
[421946639,1778362251000,-500.0,0.00041095,2]
[421946715,1778362252000,-151.0,0.00041096,120]
[421946726,1778362252000,-6508.40635,0.00041096,14]
[421946719,1778362252000,-151.0,0.00041096,120]
[421946718,1778362252000,-6508.40635,0.00041096,14]
[421946717,1778362252000,-151.0,0.00041096,120]
[421946721,1778362252000,-151.0,0.00041096,120]
[421946722,1778362252000,-6508.40635,0.00041096,14]
[421946723,1778362252000,-151.0,0.00041096,120]
[421946729,1778362252000,-6508.40635,0.00041096,14]
[421946727,1778362252000,-151.0,0.00041096,120]
[421946733,1778362252000,-2124.115976,0.00041096,120]
[421946720,1778362252000,-6508.40635,0.00041096,14]
[421946735,1778362252000,-151.0,0.00041096,120]
[421946725,1778362252000,-151.0,0.00041096,120]
[421946731,1778362252000,-6508.40635,0.00041096,14]
[421946728,1778362252000,-151.0,0.00041096,120]
[421946732,1778362252000,-151.0,0.00041096,120]
[421946730,1778362252000,-151.0,0.00041096,120]
[421946744,1778362252000,-295.059288,0.00041096,120]
[421946743,1778362252000,-6508.40635,0.00041096,14]
[421946741,1778362252000,-151.0,0.00041096,120]
[421946737,1778362252000,-6508.40635,0.00041096,14]
[421946738,1778362252000,-151.0,0.00041096,120]
[421946745,1778362252000,-2124.115976,0.00041096,120]
[421946716,1778362252000,-6508.40635,0.00041096,14]
[421946724,1778362252000,-6508.40635,0.00041096,14]
[421946712,1778362252000,-151.0,0.00041096,120]
[421946696,1778362252000,-500.0,0.00041095,2]
[421946713,1778362252000,-151.0,0.00041096,120]
[421946686,1778362252000,-500.0,0.00041095,2]
[421946690,1778362252000,-500.0,0.00041095,2]
[421946687,1778362252000,-500.0,0.00041095,2]
[421946688,1778362252000,-500.0,0.00041095,2]
[421946736,1778362252000,-2124.115976,0.00041096,120]
[421946695,1778362252000,-500.0,0.00041095,2]
[421946689,1778362252000,-500.0,0.00041095,2]
[421946693,1778362252000,-500.0,0.00041095,2]
[421946692,1778362252000,-500.0,0.00041095,2]
[421946691,1778362252000,-500.0,0.00041095,2]
[421946694,1778362252000,-500.0,0.00041095,2]
[421946705,1778362252000,-500.0,0.00041095,2]
[421946711,1778362252000,-180.127043,0.00041096,120]
[421946702,1778362252000,-500.0,0.00041095,2]
[421946706,1778362252000,-500.0,0.00041095,2]
[421946697,1778362252000,-500.0,0.00041095,2]
[421946704,1778362252000,-500.0,0.00041095,2]
[421946707,1778362252000,-551.23367372,0.00041095,2]
[421946708,1778362252000,-2727.0,0.00041096,30]
[421946701,1778362252000,-500.0,0.00041095,2]
[421946700,1778362252000,-500.0,0.00041095,2]
[421946699,1778362252000,-500.0,0.00041095,2]
[421946698,1778362252000,-500.0,0.00041095,2]
[421946709,1778362252000,-250.0,0.00041096,90]
[421946710,1778362252000,-250.0,0.00041096,90]
[421946714,1778362252000,-151.0,0.00041096,120]
[421946703,1778362252000,-500.0,0.00041095,2]
[421946740,1778362252000,-6508.40635,0.00041096,14]
[421946795,1778362252000,-2107.258854,0.00041096,120]
[421946742,1778362252000,-2124.115976,0.00041096,120]
[421946776,1778362252000,-151.0,0.00041096,7]
[421946777,1778362252000,-151.0,0.00041096,7]
[421946774,1778362252000,-151.0,0.00041096,7]
[421946778,1778362252000,-151.0,0.00041096,7]
[421946780,1778362252000,-151.0,0.00041096,120]
[421946779,1778362252000,-214.216042,0.00041096,7]
[421946781,1778362252000,-151.0,0.00041096,120]
[421946788,1778362252000,-2107.258854,0.00041096,120]
[421946790,1778362252000,-2107.258854,0.00041096,120]
[421946789,1778362252000,-2107.258854,0.00041096,120]
[421946783,1778362252000,-163.266789,0.00041096,120]
[421946791,1778362252000,-2107.258854,0.00041096,120]
[421946786,1778362252000,-2107.258854,0.00041096,120]
[421946787,1778362252000,-2107.258854,0.00041096,120]
[421946785,1778362252000,-2107.258854,0.00041096,120]
[421946784,1778362252000,-2107.258854,0.00041096,120]
[421946793,1778362252000,-2107.258854,0.00041096,120]
[421946796,1778362252000,-2107.258854,0.00041096,120]
[421946792,1778362252000,-2107.258854,0.00041096,120]
[421946794,1778362252000,-2107.258854,0.00041096,120]
[421946797,1778362252000,-2107.258854,0.00041096,120]
[421946798,1778362252000,-2107.258854,0.00041096,120]
[421946799,1778362252000,-2107.258854,0.00041096,120]
[421946800,1778362252000,-2107.258854,0.00041096,120]
[421946739,1778362252000,-2124.115976,0.00041096,120]
[421946775,1778362252000,-151.0,0.00041096,7]
[421946773,1778362252000,-151.0,0.00041096,7]
[421946782,1778362252000,-151.0,0.00041096,120]
[421946771,1778362252000,-151.0,0.00041096,7]
[421946772,1778362252000,-151.0,0.00041096,7]
[421946734,1778362252000,-6508.40635,0.00041096,14]
[421946746,1778362252000,-6508.40635,0.00041096,14]
[421946758,1778362252000,-6508.40635,0.00041096,14]
[421946751,1778362252000,-2124.115976,0.00041096,120]
[421946752,1778362252000,-6508.40635,0.00041096,14]
[421946750,1778362252000,-6508.40635,0.00041096,14]
[421946748,1778362252000,-6508.40635,0.00041096,14]
[421946749,1778362252000,-2124.115976,0.00041096,120]
[421946755,1778362252000,-2124.115976,0.00041096,120]
[421946759,1778362252000,-2124.115976,0.00041096,120]
[421946756,1778362252000,-6508.40635,0.00041096,14]
[421946754,1778362252000,-6508.40635,0.00041096,14]
[421946757,1778362252000,-2124.115976,0.00041096,120]
[421946762,1778362252000,-2124.115976,0.00041096,120]
[421946770,1778362252000,-151.0,0.00041096,7]
[421946753,1778362252000,-2124.115976,0.00041096,120]
[421946765,1778362252000,-2124.115976,0.00041096,120]
[421946767,1778362252000,-2124.115976,0.00041096,120]
[421946766,1778362252000,-2124.115976,0.00041096,120]
[421946769,1778362252000,-151.0,0.00041096,7]
[421946768,1778362252000,-2124.115976,0.00041096,120]
[421946764,1778362252000,-2124.115976,0.00041096,120]
[421946760,1778362252000,-6508.406347,0.00041096,14]
[421946761,1778362252000,-2124.115976,0.00041096,120]
[421946747,1778362252000,-2124.115976,0.00041096,120]
[421946763,1778362252000,-2124.115976,0.00041096,120]
[421946839,1778362253000,-151.0,0.00041096,120]
[421946844,1778362253000,-1252.270047,0.00041096,30]
[421946843,1778362253000,-1252.270047,0.00041096,30]
[421946837,1778362253000,-151.0,0.00041096,120]
[421946840,1778362253000,-151.0,0.00041096,120]
[421946831,1778362253000,-151.0,0.00041096,120]
[421946836,1778362253000,-151.0,0.00041096,120]
[421946838,1778362253000,-151.0,0.00041096,120]
[421946829,1778362253000,-151.0,0.00041096,120]
[421946834,1778362253000,-151.0,0.00041096,120]
[421946845,1778362253000,-1252.270047,0.00041096,30]
[421946835,1778362253000,-151.0,0.00041096,120]
[421946842,1778362253000,-1252.270047,0.00041096,30]
[421946857,1778362253000,-1252.270047,0.00041096,30]
[421946852,1778362253000,-1252.270047,0.00041096,30]
[421946848,1778362253000,-1252.270047,0.00041096,30]
[421946841,1778362253000,-291.179937,0.00041096,120]
[421946847,1778362253000,-1252.270047,0.00041096,30]
[421946851,1778362253000,-1252.270047,0.00041096,30]
[421946849,1778362253000,-1252.270047,0.00041096,30]
[421946850,1778362253000,-1252.270047,0.00041096,30]
[421946856,1778362253000,-1252.270047,0.00041096,30]
[421946853,1778362253000,-1252.270047,0.00041096,30]
[421946855,1778362253000,-1252.270047,0.00041096,30]
[421946864,1778362253000,-269.886018,0.00041096,120]
[421946859,1778362253000,-1252.270047,0.00041096,30]
[421946833,1778362253000,-151.0,0.00041096,120]
[421946846,1778362253000,-1252.270047,0.00041096,30]
[421946830,1778362253000,-151.0,0.00041096,120]
[421946802,1778362253000,-2107.258854,0.00041096,120]
[421946832,1778362253000,-151.0,0.00041096,120]
[421946803,1778362253000,-2107.2588504,0.00041096,120]
[421946858,1778362253000,-1252.270047,0.00041096,30]
[421946801,1778362253000,-2107.258854,0.00041096,120]
[421946804,1778362253000,-892.95,0.00041096,120]
[421946805,1778362253000,-892.95,0.00041096,120]
[421946808,1778362253000,-892.95,0.00041096,120]
[421946814,1778362253000,-892.95,0.00041096,120]
[421946812,1778362253000,-892.95,0.00041096,120]
[421946813,1778362253000,-892.95,0.00041096,120]
[421946809,1778362253000,-892.95,0.00041096,120]
[421946811,1778362253000,-892.95,0.00041096,120]
[421946807,1778362253000,-892.95,0.00041096,120]
[421946806,1778362253000,-892.95,0.00041096,120]
[421946810,1778362253000,-892.95,0.00041096,120]
[421946815,1778362253000,-892.95,0.00041096,120]
[421946826,1778362253000,-151.0,0.00041096,120]
[421946816,1778362253000,-892.95,0.00041096,120]
[421946827,1778362253000,-151.0,0.00041096,120]
[421946818,1778362253000,-892.95,0.00041096,120]
[421946819,1778362253000,-892.95,0.00041096,120]
[421946817,1778362253000,-892.95,0.00041096,120]
[421946820,1778362253000,-892.95,0.00041096,120]
[421946822,1778362253000,-892.95,0.00041096,120]
[421946824,1778362253000,-151.0,0.00041096,120]
[421946821,1778362253000,-892.95,0.00041096,120]
[421946825,1778362253000,-151.0,0.00041096,120]
[421946823,1778362253000,-892.95,0.00041096,120]
[421946828,1778362253000,-151.0,0.00041096,120]
[421946863,1778362253000,-269.886018,0.00041096,120]
[421946870,1778362253000,-269.886018,0.00041096,120]
[421946861,1778362253000,-1252.270041,0.00041096,30]
[421946901,1778362253000,-2985.89319831,0.000411,120]
[421946899,1778362253000,-2985.89319831,0.000411,120]
[421946892,1778362253000,-150.0,0.00041096,120]
[421946897,1778362253000,-160.0,0.000411,67]
[421946890,1778362253000,-150.0,0.00041096,120]
[421946891,1778362253000,-150.0,0.00041096,120]
[421946896,1778362253000,-194.0,0.000411,120]
[421946900,1778362253000,-2985.89319831,0.000411,120]
[421946904,1778362253000,-2985.89319831,0.000411,120]
[421946914,1778362253000,-2985.89319831,0.000411,120]
[421946903,1778362253000,-2985.89319831,0.000411,120]
[421946915,1778362253000,-2985.89319831,0.000411,120]
[421946906,1778362253000,-2985.89319831,0.000411,120]
[421946893,1778362253000,-150.0,0.00041096,120]
[421946907,1778362253000,-2985.89319831,0.000411,120]
[421946910,1778362253000,-2985.89319831,0.000411,120]
[421946854,1778362253000,-1252.270047,0.00041096,30]
[421946909,1778362253000,-2985.89319831,0.000411,120]
[421946913,1778362253000,-2985.89319831,0.000411,120]
[421946911,1778362253000,-2985.89319831,0.000411,120]
[421946912,1778362253000,-2985.89319831,0.000411,120]
[421946917,1778362253000,-2985.89319831,0.00041165,120]
[421946916,1778362253000,-151.75,0.00041145,120]
[421946919,1778362253000,-151.75,0.00041245,120]
[421946920,1778362253000,-4929.14,0.0004125,120]
[421946922,1778362253000,-154.45974035,0.00041285,5]
[421946921,1778362253000,-150.0,0.00041264,2]
[421946918,1778362253000,-199902.000001,0.000412,90]
[421946905,1778362253000,-2985.89319831,0.000411,120]